bitfinex/quotes_BTCUSD_20250812
["timestamp","ask_amount","ask_price","bid_price","bid_amount"]
[1754959765968,0.16822272,118890.0,118880.0,0.30288402]
[1754959766355,0.97628913,118900.0,118880.0,0.30288402]
[1754959767218,0.97628913,118900.0,118880.0,0.30388402]
[1754959767348,0.29596857,118900.0,118880.0,0.30188402]
[1754959767768,0.29596857,118900.0,118880.0,0.29774402]
[1754959768010,0.29596857,118900.0,118890.0,0.17136272]
[1754959768164,0.29596857,118900.0,118890.0,0.17343272]
[1754959769045,0.29803857,118900.0,118890.0,0.17343272]
[1754959770352,0.29803857,118900.0,118890.0,0.00521]
[1754959771789,0.29803857,118900.0,118890.0,0.17343272]
[1754959780795,0.86825633,118910.0,118890.0,0.26343272]
[1754959780796,0.18499577,118910.0,118890.0,0.26343272]
[1754959781010,0.18499577,118910.0,118890.0,0.27774174]
[1754959781251,0.00014674,118910.0,118900.0,0.86900815]
[1754959781468,0.12790674,118910.0,118900.0,0.97098815]
[1754959782209,0.12790674,118910.0,118900.0,0.29066759]
[1754959783434,0.12790674,118910.0,118900.0,0.29166759]
[1754959784683,0.12790674,118910.0,118900.0,0.29366759]
[1754959785618,0.12790674,118910.0,118900.0,1.0567114]
[1754959785874,0.00014674,118910.0,118900.0,1.0810314]
[1754959786526,0.00014674,118910.0,118900.0,1.2077914]
[1754959786751,0.00014674,118910.0,118900.0,1.24118683]
[1754959787500,0.00014674,118910.0,118900.0,1.24418683]
[1754959790413,0.00014674,118910.0,118900.0,0.56386627]
[1754959790616,0.00014674,118910.0,118900.0,1.24418683]
[1754959791575,0.00014674,118910.0,118900.0,1.26944083]
[1754959796544,0.00014674,118910.0,118900.0,1.26644083]
[1754959796741,0.00014674,118910.0,118900.0,1.26444083]
[1754959799286,0.00014674,118910.0,118900.0,1.35307083]
[1754959800610,0.0004,118940.0,118900.0,1.35307083]
[1754959800841,0.00052334,118940.0,118930.0,0.86593572]
[1754959801070,0.00248334,118940.0,118930.0,1.17839897]
[1754959801290,0.00052334,118940.0,118930.0,1.20642897]
[1754959801747,0.00052334,118940.0,118930.0,1.23167797]
[1754959802831,0.00052334,118940.0,118930.0,1.23367797]
[1754959803251,0.00052334,118940.0,118930.0,1.23567797]
[1754959803708,0.00052334,118940.0,118930.0,1.23367797]
[1754959803933,0.00248334,118940.0,118930.0,1.23367797]
[1754959804159,0.00248334,118940.0,118930.0,1.23667797]
[1754959805708,0.00248334,118940.0,118930.0,0.55635741]
[1754959805920,0.00248334,118940.0,118930.0,1.23667797]
[1754959806138,0.00248334,118940.0,118930.0,1.26238473]
[1754959806554,0.00248334,118940.0,118930.0,1.27074105]
[1754959808704,0.00566334,118940.0,118930.0,0.55201417]
[1754959808918,0.00248334,118940.0,118930.0,0.52676517]
[1754959809123,0.00052334,118940.0,118930.0,1.24557422]
[1754959819740,0.00265334,118940.0,118930.0,0.56525366]
[1754959819993,0.00265334,118940.0,118930.0,1.24557422]
[1754959820579,0.00052334,118940.0,118930.0,1.24557422]
[1754959821923,0.00052334,118940.0,118930.0,0.56525366]
[1754959822137,0.00052334,118940.0,118930.0,1.24557422]
[1754959826304,0.00052334,118940.0,118930.0,0.56525366]
[1754959826508,0.00052334,118940.0,118930.0,1.24557422]
[1754959829564,0.00052334,118940.0,118930.0,0.56525366]
[1754959829978,0.00052334,118940.0,118930.0,1.24557422]
[1754959830436,0.00052334,118940.0,118930.0,1.27057422]
[1754959833865,0.00052334,118940.0,118930.0,1.26857422]
[1754959834108,0.00265334,118940.0,118930.0,0.58825366]
[1754959834698,0.00265334,118940.0,118930.0,0.56325366]
[1754959835176,0.00265334,118940.0,118930.0,0.55001517]
[1754959835602,0.00265334,118940.0,118930.0,0.57501517]
[1754959835776,0.00265334,118940.0,118930.0,0.58320187]
[1754959836017,0.00265334,118940.0,118930.0,0.58521187]
[1754959836200,0.00265334,118940.0,118930.0,0.58815187]
[1754959837059,0.00052334,118940.0,118930.0,0.58815187]
[1754959837273,0.00052334,118940.0,118930.0,1.26847243]
[1754959839681,0.00265334,118940.0,118930.0,1.26847243]
[1754959839886,0.00052334,118940.0,118930.0,1.26847243]
[1754959840500,0.00122334,118940.0,118930.0,1.26028573]
[1754959840926,0.00122334,118940.0,118930.0,0.42724517]
[1754959841235,0.00122334,118940.0,118930.0,0.55254517]
[1754959842855,0.00438334,118940.0,118930.0,0.55053517]
[1754959843288,0.00122334,118940.0,118930.0,0.55053517]
[1754959843943,0.00122334,118940.0,118930.0,0.55567517]
[1754959844620,0.00122334,118940.0,118930.0,0.55053517]
[1754959844841,0.00122334,118940.0,118930.0,0.42229517]
[1754959845071,0.003395,118940.0,118930.0,0.42229517]
[1754959845294,0.85186756,118940.0,118930.0,0.12825]
[1754959845505,0.98830437,118940.0,118930.0,0.12825]
[1754959845721,0.98014756,118940.0,118930.0,0.12825]
[1754959845899,0.98014756,118940.0,118930.0,0.103]
[1754959846787,0.98014756,118940.0,118930.0,0.104]
[1754959847213,0.98014756,118940.0,118930.0,0.103]
[1754959847651,0.98014756,118940.0,118930.0,0.27216614]
[1754959848060,0.299827,118940.0,118930.0,0.27216614]
[1754959848289,0.30837318,118940.0,118930.0,0.27216614]
[1754959851229,0.299827,118940.0,118930.0,0.27216614]
[1754959852534,0.128515,118940.0,118930.0,0.27216614]
[1754959852745,0.12828,118940.0,118930.0,0.27730614]
[1754959852966,0.30520567,118950.0,118940.0,0.168152]
[1754959853167,0.30525452,118950.0,118940.0,0.168152]
[1754959853920,0.98853508,118950.0,118930.0,0.17421614]
[1754959854128,0.98853508,118950.0,118930.0,0.28421614]
[1754959854340,0.98853508,118950.0,118940.0,0.168152]
[1754959854572,0.30725452,118950.0,118940.0,0.168152]
[1754959855281,0.29882923,118950.0,118940.0,0.168152]
[1754959856321,0.13068885,118950.0,118940.0,0.168152]
[1754959856542,0.13068885,118950.0,118940.0,0.253292]
[1754959857168,0.29882672,118950.0,118940.0,0.253292]
[1754959857378,0.29882672,118950.0,118940.0,0.248152]
[1754959857587,0.29978672,118950.0,118940.0,0.248152]
[1754959857829,0.29978672,118950.0,118940.0,0.08]
[1754959858044,0.98010728,118950.0,118940.0,0.08]
[1754959858466,0.29978672,118950.0,118940.0,0.248152]
[1754959858667,0.29882672,118950.0,118940.0,0.248152]
[1754959860270,0.29882672,118950.0,118940.0,0.08]
[1754959860495,0.30201672,118950.0,118940.0,0.248152]
[1754959861329,0.29882672,118950.0,118940.0,0.248152]
[1754959862374,0.13068885,118950.0,118940.0,0.248152]
[1754959862578,0.29882672,118950.0,118940.0,0.248152]
[1754959864027,0.29882672,118950.0,118940.0,0.250242]
[1754959864443,0.29882672,118950.0,118940.0,0.253292]
[1754959864667,0.29882672,118950.0,118940.0,0.173292]
[1754959865028,0.29882672,118950.0,118940.0,0.283292]
[1754959867082,0.29682672,118950.0,118940.0,0.278152]
[1754959867275,0.29882672,118950.0,118940.0,0.283292]
[1754959868771,0.00044885,118950.0,118940.0,0.283292]
[1754959868981,0.12872885,118950.0,118940.0,0.98106158]
[1754959869617,0.00044885,118950.0,118940.0,1.19206483]
[1754959869828,0.00044885,118950.0,118940.0,1.20037688]
[1754959870282,0.00044885,118950.0,118940.0,1.22562588]
[1754959870474,0.00044885,118950.0,118940.0,1.22662588]
[1754959870717,0.00044885,118950.0,118940.0,1.27563588]
[1754959872431,0.00044885,118950.0,118940.0,1.27463588]
[1754959873531,0.00044885,118950.0,118940.0,1.27663588]
[1754959876013,0.00044885,118950.0,118940.0,1.27463588]
[1754959882379,0.00044885,118950.0,118940.0,1.54303588]
[1754959895199,0.00044885,118950.0,118940.0,0.83881532]
[1754959895420,0.00044885,118950.0,118940.0,1.51913588]
[1754959897742,0.00044885,118950.0,118940.0,1.50168686]
[1754959898177,0.00044885,118950.0,118940.0,1.51913588]
[1754959901471,0.00044885,118950.0,118940.0,1.50168686]
[1754959903566,0.00044885,118950.0,118940.0,1.51913588]
[1754959905717,0.00044885,118950.0,118940.0,1.54300588]
[1754959913149,0.00044885,118950.0,118940.0,0.86268532]
[1754959913352,0.00044885,118950.0,118940.0,1.54300588]
[1754959917693,1.535e-05,118950.0,118940.0,1.54300588]
[1754959923081,1.535e-05,118950.0,118940.0,0.86268532]
[1754959923253,1.535e-05,118950.0,118940.0,1.54300588]
[1754959924222,1.535e-05,118950.0,118940.0,1.63163588]
[1754959926208,1.535e-05,118950.0,118940.0,1.60776588]
[1754959927842,0.0004,118970.0,118960.0,0.2021874]
[1754959928053,0.00249885,118970.0,118960.0,1.20311121]
[1754959928679,0.00249885,118970.0,118960.0,1.20647621]
[1754959929481,0.00249885,118970.0,118960.0,1.20747621]
[1754959930098,0.00249885,118970.0,118960.0,1.20947621]
[1754959932392,0.00044885,118970.0,118960.0,2.14203677]
[1754959932600,0.00044885,118970.0,118960.0,1.98363677]
[1754959932830,0.00044885,118970.0,118960.0,1.30327621]
[1754959933283,0.00044885,118970.0,118960.0,1.30227621]
[1754959933906,0.00044885,118970.0,118960.0,1.30027621]
[1754959934132,0.00044885,118970.0,118960.0,1.17243621]
[1754959934343,0.00044885,118970.0,118960.0,1.30027621]
[1754959934556,0.00044885,118970.0,118960.0,1.19503156]
[1754959934978,0.00044885,118970.0,118960.0,1.21164621]
[1754959938744,0.00044885,118970.0,118960.0,1.48004621]
[1754959940719,0.00044885,118970.0,118960.0,1.44852156]
[1754959943068,0.00260885,118970.0,118960.0,1.44535156]
[1754959943487,0.00260885,118970.0,118960.0,1.44527156]
[1754959943706,0.00260885,118970.0,118960.0,1.44844156]
[1754959944252,0.00044885,118970.0,118960.0,1.44844156]
[1754959945283,0.00260885,118970.0,118960.0,1.30406691]
[1754959945646,0.00260885,118970.0,118960.0,1.44323156]
[1754959946927,0.00260885,118970.0,118960.0,1.31547156]
[1754959947138,0.00260885,118970.0,118960.0,1.44323156]
[1754959948322,0.00260885,118970.0,118960.0,1.44527156]
[1754959948513,0.00260885,118970.0,118960.0,1.44844156]
[1754959949137,0.00260885,118970.0,118960.0,1.44323156]
[1754959949985,0.00260885,118970.0,118960.0,1.43483156]
[1754959950387,0.00260885,118970.0,118960.0,1.16643156]
[1754959951038,0.00260885,118970.0,118960.0,1.16847156]
[1754959951242,0.00260885,118970.0,118960.0,1.17164156]
[1754959958423,0.00044885,118970.0,118960.0,1.17164156]
[1754959965191,0.00244885,118970.0,118960.0,0.39508565]
[1754959965393,0.00244885,118970.0,118960.0,1.16847156]
[1754959965837,0.00244885,118970.0,118960.0,1.17142156]
[1754959966894,0.00244885,118970.0,118960.0,0.52262565]
[1754959967100,0.00244885,118970.0,118960.0,1.17142156]
[1754959967316,0.00044885,118970.0,118960.0,1.17142156]
[1754959969901,0.00044885,118970.0,118960.0,0.52262565]
[1754959970101,0.00044885,118970.0,118960.0,1.17142156]
[1754959972043,1e-08,118970.0,118960.0,1.17142156]
[1754959972276,0.0002,118980.0,118970.0,0.18472425]
[1754959972498,0.00068862,118980.0,118970.0,1.17904341]
[1754959973167,0.00068862,118980.0,118970.0,1.20428141]
[1754959975168,1e-08,118980.0,118970.0,1.20428141]
[1754959979940,1e-08,118980.0,118970.0,0.5554855]
[1754959980160,1e-08,118980.0,118970.0,1.20428141]
[1754959982853,1e-08,118980.0,118970.0,0.5554855]
[1754959983059,1e-08,118980.0,118970.0,1.20428141]
[1754959984232,0.00200001,118980.0,118970.0,1.19924141]
[1754959984431,0.00200001,118980.0,118970.0,0.5510855]
[1754959984641,0.00200001,118980.0,118970.0,1.19988141]
[1754959985065,0.00200001,118980.0,118970.0,1.20197141]
[1754959985268,0.00200001,118980.0,118970.0,1.20492141]
[1754959986164,0.00200001,118980.0,118970.0,0.5561255]
[1754959986372,0.00200001,118980.0,118970.0,1.20492141]
[1754959986985,0.00200001,118980.0,118970.0,0.40607085]
[1754959987191,0.00506001,118980.0,118970.0,0.5510855]
[1754959987600,0.00200001,118980.0,118970.0,0.5510855]
[1754959988660,0.00200001,118980.0,118970.0,1.19988141]
[1754959988834,0.00200001,118980.0,118970.0,0.5510855]
[1754959990983,0.00200001,118980.0,118970.0,0.5562955]
[1754959995809,0.00200001,118980.0,118970.0,0.40607085]
[1754959996016,0.00200001,118980.0,118970.0,0.55179987]
[1754959998833,0.00200001,118980.0,118970.0,0.55700987]
[1754960001141,1e-08,118980.0,118970.0,1.13378862]
[1754960004877,1e-08,118980.0,118970.0,0.55700987]
[1754960005003,1e-08,118980.0,118970.0,1.13378862]
[1754960005664,1e-08,118980.0,118970.0,0.55700987]
[1754960005861,1e-08,118980.0,118970.0,1.13366862]
[1754960007905,1e-08,118980.0,118970.0,1.15028327]
[1754960008110,0.0002,118990.0,118980.0,0.20215914]
[1754960008315,0.0002,118990.0,118980.0,1.11195114]
[1754960008546,0.0002,118990.0,118980.0,1.11515114]
[1754960008979,0.0002,118990.0,118980.0,1.11851614]
[1754960011267,0.0002,119010.0,119000.0,0.18551624]
[1754960011489,0.00032315,119010.0,119000.0,1.09534824]
[1754960011912,0.00032315,119010.0,119000.0,1.09854824]
[1754960012121,0.00032315,119010.0,119000.0,0.52176949]
[1754960012329,0.00032315,119010.0,119000.0,1.09854824]
[1754960012679,0.00032315,119010.0,119000.0,1.10881424]
[1754960012880,0.00032315,119010.0,119000.0,0.53203549]
[1754960013776,0.00032315,119010.0,119000.0,0.53303549]
[1754960013967,0.00032315,119010.0,119000.0,0.54131696]
[1754960015678,0.00032315,119010.0,119000.0,0.53419696]
[1754960016507,0.00032315,119010.0,119000.0,0.5596289]
[1754960025740,0.00236315,119010.0,119000.0,0.5596289]
[1754960027692,0.00032315,119010.0,119000.0,0.5596289]
[1754960028418,0.00022315,119010.0,119000.0,0.5596289]
[1754960034767,0.00022315,119010.0,119000.0,1.20816561]
[1754960040206,0.00022315,119010.0,119000.0,0.5596289]
[1754960040406,0.00022315,119010.0,119000.0,0.4313089]
[1754960040730,0.00226315,119010.0,119000.0,0.5594289]
[1754960041545,0.00226315,119010.0,119000.0,1.20796561]
[1754960042329,0.00226315,119010.0,119000.0,0.5594289]
[1754960042817,0.00226315,119010.0,119000.0,0.54794743]
[1754960043003,0.65079986,119010.0,119000.0,0.54593743]
[1754960044827,0.00226315,119010.0,119000.0,0.54593743]
[1754960045085,0.00226315,119010.0,119000.0,0.52840841]
[1754960047047,0.00540315,119010.0,119000.0,0.52840841]
[1754960047612,0.00226315,119010.0,119000.0,0.52840841]
[1754960049329,0.00226315,119010.0,119000.0,0.53055841]
[1754960049533,0.00226315,119010.0,119000.0,0.53378841]
[1754960051206,0.00226315,119010.0,119000.0,0.52378841]
[1754960053630,0.00226315,119010.0,119000.0,0.54123743]
[1754960054641,0.00226315,119010.0,119000.0,0.56123743]
[1754960054988,0.00022315,119010.0,119000.0,0.56123743]
[1754960068166,0.00022315,119010.0,119000.0,0.57806743]
[1754960068374,0.00022315,119010.0,119000.0,0.56123743]
[1754960071956,0.00022315,119010.0,119000.0,1.20983895]
[1754960072605,0.00022315,119010.0,119000.0,0.56123743]
[1754960072816,0.00022315,119010.0,119000.0,1.20983895]
[1754960075106,0.00022315,119010.0,119000.0,0.9204422]
[1754960075253,0.00022315,119010.0,119000.0,0.9224122]
[1754960075449,0.00022315,119010.0,119000.0,0.4671129]
[1754960075748,0.00022315,119010.0,119000.0,1.11571442]
[1754960076383,0.00022315,119010.0,119000.0,1.14100517]
[1754960076582,0.00022315,119010.0,119000.0,0.49240365]
[1754960079277,0.00022315,119010.0,119000.0,0.48668365]
[1754960079499,0.00022315,119010.0,119000.0,1.15586419]
[1754960084764,0.00022315,119010.0,119000.0,1.02798419]
[1754960084996,0.00022315,119010.0,119000.0,1.15590419]
[1754960090163,0.00022315,119010.0,119000.0,0.50409267]
[1754960093228,0.00234315,119010.0,119000.0,0.35683365]
[1754960093429,0.65403467,119010.0,119000.0,0.48467365]
[1754960093992,0.65403467,119010.0,119000.0,0.48662365]
[1754960094608,0.65403467,119010.0,119000.0,0.48467365]
[1754960094776,0.00543315,119010.0,119000.0,0.48467365]
[1754960094983,0.65403467,119010.0,119000.0,0.48467365]
[1754960098421,0.65403467,119010.0,119000.0,0.50212267]
[1754960098626,0.62110567,119010.0,119000.0,0.50709267]
[1754960099205,0.0002,119020.0,119010.0,0.1680531]
[1754960099417,0.65092152,119020.0,119010.0,0.2680531]
[1754960100460,0.65092152,119020.0,119010.0,0.2690531]
[1754960101030,0.65401152,119020.0,119010.0,0.2690531]
[1754960102806,1.47065202,119020.0,119010.0,0.101]
[1754960103009,0.8220505,119020.0,119010.0,0.101]
[1754960103666,0.8220505,119020.0,119010.0,0.2690531]
[1754960105700,1.47903737,119020.0,119010.0,0.101]
[1754960107808,1.56176062,119020.0,119010.0,0.101]
[1754960108021,1.56176062,119020.0,119010.0,0.001]
[1754960108226,1.58700062,119020.0,119010.0,0.001]
[1754960108905,0.16806722,119000.0,118980.0,0.17952024]
[1754960109128,0.16806722,119000.0,118990.0,0.12]
[1754960109367,0.29899722,119000.0,118990.0,0.27808135]
[1754960109607,0.30111722,119000.0,118990.0,0.27808135]
[1754960109836,0.32678723,119000.0,118990.0,0.11]
[1754960110040,0.32678723,119000.0,118990.0,0.27808135]
[1754960110238,0.97538875,119000.0,118990.0,0.27808135]
[1754960111227,0.94971874,119000.0,118990.0,0.27808135]
[1754960111637,0.94971874,119000.0,118990.0,0.27908135]
[1754960111796,0.94971874,119000.0,118990.0,0.17108135]
[1754960112331,0.94971874,119000.0,118990.0,0.003]
[1754960113996,1.04082734,119000.0,118990.0,0.003]
[1754960114205,1.12331177,119000.0,118990.0,0.003]
[1754960114413,1.04082734,119000.0,118990.0,0.003]
[1754960115037,0.16808135,118990.0,118980.0,0.17662339]
[1754960115238,0.81882287,118990.0,118980.0,0.29662339]
[1754960115965,0.81882287,118990.0,118980.0,0.29870339]
[1754960116378,0.82740043,118990.0,118980.0,0.30385339]
[1754960116790,0.82740043,118990.0,118980.0,0.30485339]
[1754960116997,0.00214,118990.0,118980.0,0.30485339]
[1754960117222,0.65074152,118990.0,118980.0,0.30485339]
[1754960118277,0.00214,118990.0,118980.0,0.30485339]
[1754960118498,0.64860152,118990.0,118980.0,0.30485339]
[1754960119583,0.42392245,119000.0,118990.0,0.16808135]
[1754960119812,0.42606245,119000.0,118990.0,0.16808135]
[1754960120701,0.40081945,119000.0,118990.0,0.16808135]
[1754960120911,1.07466497,119000.0,118990.0,0.16808135]
[1754960121195,1.04942097,119000.0,118990.0,0.16808135]
[1754960121404,1.04942097,119000.0,118990.0,0.16908135]
[1754960122549,0.78501515,119000.0,118990.0,0.17431135]
[1754960122779,0.77644152,119000.0,118990.0,0.17431135]
[1754960123259,0.64860152,119000.0,118990.0,0.17431135]
[1754960123461,0.77652152,119000.0,118990.0,0.29431135]
[1754960124114,0.12792,119000.0,118990.0,0.29431135]
[1754960124318,0.77652152,119000.0,118990.0,0.29431135]
[1754960129026,0.12792,119000.0,118990.0,0.29431135]
[1754960129250,0.77652152,119000.0,118990.0,0.29431135]
[1754960130656,0.12792,119000.0,118990.0,0.29431135]
[1754960130866,0.77652152,119000.0,118990.0,0.29431135]
[1754960131554,0.12792,119000.0,118990.0,0.29431135]
[1754960131771,0.77652152,119000.0,118990.0,0.29431135]
[1754960132659,0.12792,119000.0,118990.0,0.29431135]
[1754960132867,0.77652152,119000.0,118990.0,0.29431135]
[1754960139973,0.77855152,119000.0,118990.0,0.29431135]
[1754960140177,0.12995,119000.0,118990.0,0.29431135]
[1754960140316,0.77855152,119000.0,118990.0,0.29431135]
[1754960143717,0.94661874,119000.0,118990.0,0.29431135]
[1754960143887,0.94661874,119000.0,118990.0,0.28452135]
[1754960144143,0.94964874,119000.0,118990.0,0.28452135]
[1754960144347,0.30104722,119000.0,118990.0,0.28452135]
[1754960144553,0.94964874,119000.0,118990.0,0.28452135]
[1754960144759,0.94661874,119000.0,118990.0,0.28452135]
[1754960145781,0.94661874,119000.0,118990.0,0.121]
[1754960145981,0.94964874,119000.0,118990.0,0.121]
[1754960149269,0.94964874,119000.0,118990.0,0.28908135]
[1754960150494,0.12995,119000.0,118990.0,0.28908135]
[1754960150687,0.77855152,119000.0,118990.0,0.28908135]
[1754960152373,0.77855152,119000.0,118990.0,0.29112135]
[1754960152625,0.77855152,119000.0,118990.0,0.29422135]
[1754960157422,0.20997462,119010.0,119000.0,0.16806722]
[1754960157690,1.04592839,119010.0,119000.0,0.16806722]
[1754960157860,1.69452991,119010.0,119000.0,0.16806722]
[1754960158473,1.5433327,119010.0,119000.0,0.17010722]
[1754960158639,1.5433327,119010.0,119000.0,0.17320722]
[1754960158963,1.5190907,119010.0,119000.0,0.17320722]
[1754960159555,1.4447528,119010.0,119000.0,0.17320722]
[1754960159855,0.96420438,119010.0,119000.0,0.17320722]
[1754960160085,1.6128059,119010.0,119000.0,0.17320722]
[1754960160424,1.4447528,119010.0,119000.0,0.17320722]
[1754960160943,1.4437528,119010.0,119000.0,0.17320722]
[1754960161924,1.52623723,119010.0,119000.0,0.17320722]
[1754960162130,1.43536745,119010.0,119000.0,0.17320722]
[1754960162330,0.78676593,119010.0,119000.0,0.17320722]
[1754960162469,1.4437528,119010.0,119000.0,0.17320722]
[1754960162688,1.6118059,119010.0,119000.0,0.17320722]
[1754960162867,1.60342055,119010.0,119000.0,0.17320722]
[1754960163441,1.59842055,119010.0,119000.0,0.17320722]
[1754960163795,1.6068059,119010.0,119000.0,0.17320722]
[1754960164014,1.43036745,119010.0,119000.0,0.17320722]
[1754960166015,1.4387528,119010.0,119000.0,0.17320722]
[1754960166225,1.43036745,119010.0,119000.0,0.17320722]
[1754960166458,1.6068059,119010.0,119000.0,0.17320722]
[1754960166637,1.59842055,119010.0,119000.0,0.17320722]
[1754960167364,1.43036745,119010.0,119000.0,0.17320722]
[1754960168662,1.6068059,119010.0,119000.0,0.17320722]
[1754960169597,0.30121751,119010.0,119000.0,0.17320722]
[1754960169828,0.13316441,119010.0,119000.0,0.17320722]
[1754960170030,1.43036745,119010.0,119000.0,0.17320722]
[1754960172398,1.30252745,119010.0,119000.0,0.17320722]
[1754960172630,0.77973593,119010.0,119000.0,0.17320722]
[1754960174091,0.13113441,119010.0,119000.0,0.17320722]
[1754960174210,0.77973593,119010.0,119000.0,0.17320722]
[1754960175744,0.78038593,119010.0,119000.0,0.17320722]
[1754960176287,0.77973593,119010.0,119000.0,0.17320722]
[1754960177865,0.77973593,119010.0,119000.0,0.19320722]
[1754960179312,0.13113441,119010.0,119000.0,0.19320722]
[1754960179842,0.77973593,119010.0,119000.0,0.19320722]
[1754960181588,0.78176593,119010.0,119000.0,0.19320722]
[1754960181793,0.13316441,119010.0,119000.0,0.19320722]
[1754960182001,0.78176593,119010.0,119000.0,0.19320722]
[1754960182204,0.77973593,119010.0,119000.0,0.19320722]
[1754960183262,0.0002,119020.0,119010.0,0.1680531]
[1754960183469,0.13096,119020.0,119010.0,0.2800231]
[1754960183679,0.13096,119020.0,119010.0,0.2831231]
[1754960183885,0.77956152,119020.0,119010.0,0.2831231]
[1754960184313,0.13096,119020.0,119010.0,0.2831231]
[1754960184534,0.77956152,119020.0,119010.0,0.2831231]
[1754960184714,0.13096,119020.0,119010.0,0.2831231]
[1754960187820,0.13092,119020.0,119010.0,0.2931231]
[1754960191094,0.0002,119020.0,119010.0,0.86962004]
[1754960191306,0.0002,119020.0,119010.0,0.2931231]
[1754960191520,0.0002,119020.0,119010.0,0.4489181]
[1754960192375,0.57669694,119020.0,119010.0,0.4489181]
[1754960192599,0.0002,119020.0,119010.0,0.4489181]
[1754960202180,0.0002,119020.0,119010.0,0.53164135]
[1754960204760,1e-08,119020.0,119010.0,0.62400175]
[1754960204952,1e-08,119020.0,119010.0,1.20711334]
[1754960205154,1e-08,119020.0,119010.0,0.6306164]
[1754960205361,1e-08,119020.0,119010.0,0.6556164]
[1754960205537,1e-08,119020.0,119010.0,0.67306542]
[1754960205729,1e-08,119020.0,119010.0,1.28011343]
[1754960205929,1e-08,119020.0,119010.0,0.70361649]
[1754960206236,1e-08,119020.0,119010.0,1.28011343]
[1754960206440,1e-08,119020.0,119010.0,0.70361649]
[1754960206740,1e-08,119020.0,119010.0,1.36862343]
[1754960206954,1e-08,119020.0,119010.0,0.76157542]
[1754960207277,1e-08,119020.0,119010.0,1.36862343]
[1754960207464,1e-08,119020.0,119010.0,1.33807236]
[1754960207667,1e-08,119020.0,119010.0,1.27046196]
[1754960207874,0.0002,119090.0,119080.0,0.16795431]
[1754960208231,0.00529,119090.0,119080.0,0.27795431]
[1754960208428,0.58178694,119090.0,119080.0,0.27795431]
[1754960208842,1.33460944,119090.0,119080.0,0.12]
[1754960209048,0.84083575,119090.0,119060.0,0.17636066]
[1754960209253,0.00293,119080.0,119070.0,0.27432813]
[1754960209474,0.58158694,119080.0,119070.0,0.27432813]
[1754960209649,0.57865694,119080.0,119070.0,0.27432813]
[1754960210634,0.58158694,119080.0,119070.0,0.27432813]
[1754960211519,0.00509,119080.0,119070.0,0.27432813]
[1754960211760,0.00216,119080.0,119070.0,0.27432813]
[1754960213349,0.13672211,119090.0,119080.0,0.16795431]
[1754960213578,0.13672211,119090.0,119080.0,0.29795431]
[1754960213579,0.13888211,119090.0,119080.0,0.29795431]
[1754960214297,0.71537905,119090.0,119080.0,0.29795431]
[1754960214537,0.79097849,119090.0,119080.0,0.29795431]
[1754960215266,0.21448155,119090.0,119080.0,0.29795431]
[1754960215486,0.71830905,119090.0,119080.0,0.29795431]
[1754960216800,0.31813767,119090.0,119080.0,0.13]
[1754960216982,0.90246583,119090.0,119080.0,0.13]
[1754960218335,0.90246628,119090.0,119080.0,0.13]
[1754960218778,0.32596934,119090.0,119080.0,0.13]
[1754960218983,1.56168647,119090.0,119070.0,0.16432813]
[1754960219198,1.15299388,119080.0,119070.0,0.28432813]
[1754960219406,0.58158694,119080.0,119070.0,0.28432813]
[1754960222473,0.00509,119080.0,119070.0,0.28432813]
[1754960222913,0.58942117,119080.0,119070.0,0.28432813]
[1754960223310,0.01292423,119080.0,119070.0,0.28432813]
[1754960223508,0.58942117,119080.0,119070.0,0.28432813]
[1754960224290,0.75737548,119080.0,119070.0,0.12]
[1754960224494,0.16797327,119070.0,119050.0,0.1795186]
[1754960224749,0.57865694,119060.0,119050.0,0.4334486]
[1754960224882,0.57865694,119060.0,119050.0,0.28796877]
[1754960225072,0.74956946,119060.0,119050.0,0.28796877]
[1754960225962,0.74663946,119060.0,119050.0,0.28796877]
[1754960226391,0.74956946,119060.0,119050.0,0.12]
[1754960226601,0.74956946,119060.0,119050.0,0.11]
[1754960226602,0.75795481,119060.0,119050.0,0.11]
[1754960226813,0.16800553,119050.0,119030.0,0.38445174]
[1754960227017,0.16800553,119050.0,119030.0,0.50653174]
[1754960227018,0.57865694,119040.0,119030.0,0.50653174]
[1754960227871,0.57865694,119040.0,119030.0,0.36921174]
[1754960228075,0.57865694,119040.0,119030.0,0.29845134]
[1754960228076,0.57870576,119040.0,119030.0,0.29845134]
[1754960228481,0.74671651,119040.0,119030.0,0.2879701]
[1754960228739,0.74671651,119040.0,119030.0,0.12]
[1754960228740,1.32321345,119040.0,119030.0,0.12]
[1754960228951,0.16802937,119030.0,119010.0,0.38477354]
[1754960229160,0.16802937,119030.0,119020.0,0.11]
[1754960229161,0.30574937,119030.0,119020.0,0.11]
[1754960229377,0.89267568,119030.0,119020.0,0.11]
[1754960229585,0.90399103,119030.0,119020.0,0.11]
[1754960230035,0.16804377,119020.0,119000.0,0.31728642]
[1754960230269,0.57649694,119010.0,119000.0,0.43728642]
[1754960230475,0.57649694,119010.0,119000.0,0.43940642]
[1754960232525,0.16804377,119020.0,119010.0,0.1680531]
[1754960232734,0.74516071,119020.0,119010.0,0.2780531]
[1754960236181,0.16866377,119020.0,119010.0,0.2780531]
[1754960236399,0.74516071,119020.0,119010.0,0.11]
[1754960236833,0.16866377,119020.0,119010.0,0.11]
[1754960237061,0.17641021,119030.0,119010.0,0.3508335]
[1754960237279,0.18484545,119040.0,119020.0,0.17108898]
[1754960237705,0.00204882,119040.0,119030.0,0.17319486]
[1754960237913,0.14739417,119040.0,119030.0,0.17319486]
[1754960238134,0.72389111,119040.0,119030.0,0.17319486]
[1754960238603,0.72389111,119040.0,119030.0,0.19319486]
[1754960239387,0.14739417,119040.0,119030.0,0.19319486]
[1754960239620,0.71550576,119040.0,119030.0,0.19319486]
[1754960239816,4.882e-05,119040.0,119030.0,0.19319486]
[1754960240218,0.57654576,119040.0,119030.0,0.19319486]
[1754960241257,4.882e-05,119040.0,119030.0,0.19319486]
[1754960241432,0.59181554,119040.0,119030.0,0.19319486]
[1754960241641,0.57654576,119040.0,119030.0,0.19319486]
[1754960245324,4.882e-05,119040.0,119030.0,0.19319486]
[1754960245730,0.57654576,119040.0,119030.0,0.19319486]
[1754960247365,4.882e-05,119040.0,119030.0,0.19319486]
[1754960252041,0.16805957,119040.0,119030.0,0.19319486]
[1754960252359,0.74977651,119040.0,119030.0,0.02]
[1754960252607,0.74655651,119040.0,119030.0,0.18802486]
[1754960253649,0.74977651,119040.0,119030.0,0.18802486]
[1754960253804,0.74977651,119040.0,119030.0,0.02]
[1754960255008,0.74655651,119040.0,119030.0,0.02]
[1754960255215,0.74655651,119040.0,119030.0,0.18802486]
[1754960255419,0.74655651,119040.0,119030.0,0.02]
[1754960256119,0.74977651,119040.0,119030.0,0.02]
[1754960256374,0.75816186,119040.0,119030.0,0.02]
[1754960257477,0.18166492,119040.0,119030.0,0.02]
[1754960257674,0.75816186,119040.0,119030.0,0.02]